bitfinex-derivatives/quotes_BTCF0:USTF0_20241128
["timestamp","ask_amount","ask_price","bid_price","bid_amount"]
[1732788003757,8.998e-05,95031.0,95030.0,0.057591]
[1732788004760,0.05267998,95031.0,95030.0,0.005]
[1732788005056,0.05267998,95031.0,95030.0,0.057591]
[1732788006145,8.998e-05,95031.0,95030.0,0.200071]
[1732788006351,0.09399486,95042.0,95041.0,0.052585]
[1732788006548,0.0940011,95042.0,95041.0,0.052585]
[1732788006751,0.1465851,95042.0,95041.0,0.052585]
[1732788007056,0.052588,95036.0,95035.0,0.052588]
[1732788007550,0.09396613,95040.0,95030.0,0.50628]
[1732788008060,0.052585,95040.0,95035.0,0.052588]
[1732788008249,0.09396613,95041.0,95036.0,0.052587]
[1732788008458,0.052586,95039.0,95036.0,0.052587]
[1732788008855,0.052587,95038.0,95037.0,0.052587]
[1732788009052,0.00310166,95042.0,95041.0,0.052585]
[1732788009451,0.12748067,95040.0,95015.0,0.2516991]
[1732788009653,0.3608,95029.0,95011.0,0.0313]
[1732788009870,0.09391644,95027.0,95012.0,0.14248]
[1732788010054,0.052595,95022.0,95016.0,0.052598]
[1732788010360,0.0331,95028.0,95017.0,0.052598]
[1732788010361,0.052596,95021.0,95017.0,0.052598]
[1732788010551,0.14651044,95024.0,95012.0,0.14248]
[1732788010748,0.052595,95023.0,95012.0,0.14248]
[1732788010958,0.052596,95022.0,95019.0,0.052596]
[1732788011148,0.052596,95021.0,95019.0,0.052596]
[1732788011355,0.09391644,95025.0,95019.0,0.052596]
[1732788011554,0.052596,95020.0,95019.0,0.052596]
[1732788011754,0.001,95023.0,95012.0,0.009]
[1732788011957,0.052605,95004.0,95000.0,0.1]
[1732788013256,0.053605,95004.0,95002.0,0.00905893]
[1732788014159,0.054605,95004.0,95002.0,0.01205893]
[1732788014963,0.087405,95004.0,95002.0,0.01205893]
[1732788015458,0.24391201,95004.0,95002.0,0.01205893]
[1732788015654,0.15650701,95003.0,95002.0,0.01205893]
[1732788016167,0.3158,95003.0,95002.0,0.00305893]
[1732788016370,0.36697625,95003.0,95002.0,0.00305893]
[1732788017256,0.36697625,95003.0,95002.0,5.893e-05]
[1732788017565,0.36797625,95003.0,95002.0,0.00305893]
[1732788018265,0.51045629,95003.0,95002.0,0.00305893]
[1732788018571,0.45928,95003.0,95002.0,0.00305893]
[1732788018866,0.46028,95003.0,95002.0,0.00305893]
[1732788019073,0.55407661,95003.0,95002.0,0.00305893]
[1732788020164,0.46028,95003.0,95002.0,0.00305893]
[1732788020361,0.052606,95002.0,95000.0,0.04156693]
[1732788020560,0.3608,95001.0,94967.0,0.3608]
[1732788020759,0.052625,94969.0,94967.0,0.3608]
[1732788021462,0.052625,94969.0,94968.0,0.00013324]
[1732788022368,0.053625,94969.0,94968.0,0.00013324]
[1732788024070,0.054625,94969.0,94968.0,0.00013324]
[1732788024570,0.0547459,94969.0,94968.0,0.00013324]
[1732788025961,0.0537459,94969.0,94968.0,0.00013324]
[1732788026164,0.0547459,94969.0,94968.0,0.00013324]
[1732788026569,0.0021209,94969.0,94968.0,0.00013324]
[1732788026760,0.14252,94985.0,94968.0,0.00013324]
[1732788026963,0.052619,94979.0,94971.0,0.3608]
[1732788027163,0.052619,94979.0,94977.0,0.05262]
[1732788028161,0.001,94979.0,94977.0,0.05262]
[1732788028769,0.57040503,94990.0,94972.0,0.0313]
[1732788028770,0.00068436,94990.0,94972.0,0.0313]
[1732788029063,0.05418672,95001.0,94989.0,0.3608]
[1732788029267,0.00157972,95001.0,94989.0,0.3608]
[1732788029574,0.052613,94991.0,94989.0,0.3608]
[1732788029878,0.05261,94996.0,94989.0,0.3608]
[1732788030066,0.19501,94996.0,94994.0,0.05261]
[1732788030580,0.00157972,95001.0,94989.0,0.3628]
[1732788030766,0.052611,94993.0,94991.0,0.052612]
[1732788032368,0.052612,94991.0,94990.0,0.0312]
[1732788032574,0.052612,94991.0,94989.0,0.002]
[1732788032774,0.052612,94991.0,94981.0,0.052618]
[1732788032775,0.052617,94984.0,94981.0,0.052618]
[1732788032965,0.3608,94995.0,94981.0,0.052618]
[1732788032966,0.052617,94983.0,94981.0,0.052618]
[1732788033870,0.14236,94989.0,94983.0,0.052617]
[1732788034076,0.052616,94985.0,94983.0,0.052617]
[1732788035867,0.052616,94984.0,94983.0,0.001]
[1732788036068,0.052616,94984.0,94983.0,0.007]
[1732788036267,0.001,94985.0,94983.0,0.007]
[1732788036268,0.001,94985.0,94984.0,0.052616]
[1732788037979,0.052615,94986.0,94984.0,0.052616]
[1732788038478,0.1424,94991.0,94984.0,0.052616]
[1732788038479,0.0937762,94991.0,94984.0,0.052616]
[1732788038782,0.1424,94991.0,94987.0,0.052614]
[1732788039075,0.1424,94991.0,94983.0,0.007]
[1732788039076,0.0937762,94989.0,94983.0,0.007]
[1732788039283,0.052616,94985.0,94982.0,0.052617]
[1732788039478,0.053616,94985.0,94984.0,0.008]
[1732788039680,0.053616,94985.0,94984.0,0.015]
[1732788039681,0.06205817,94985.0,94984.0,0.015]
[1732788040184,0.06205817,94985.0,94984.0,0.014]
[1732788040981,0.06205817,94985.0,94983.0,0.001]
[1732788040982,0.06105817,94985.0,94983.0,0.001]
[1732788041174,0.10238068,94984.0,94983.0,0.001]
[1732788041370,0.05238068,94985.0,94983.0,0.001]
[1732788041576,0.1424,95007.0,94983.0,0.001]
[1732788041577,0.052612,94992.0,94983.0,0.001]
[1732788041876,0.052612,94992.0,94982.0,0.3608]
[1732788041877,0.052612,94992.0,94991.0,0.3608]
[1732788042586,0.0669774,94992.0,94991.0,0.3608]
[1732788043176,0.001,94985.0,94984.0,0.007]
[1732788043573,0.0153654,94985.0,94984.0,0.007]
[1732788044883,0.0143654,94985.0,94983.0,0.053617]
[1732788045183,0.0143654,94984.0,94983.0,0.052617]
[1732788045378,0.01453962,94987.0,94985.0,0.052615]
[1732788045587,0.01442306,94986.0,94985.0,0.052615]
[1732788046976,0.01442306,94986.0,94985.0,0.053615]
[1732788047585,0.01442306,94986.0,94985.0,0.001]
[1732788047782,0.01542306,94986.0,94985.0,0.007]
[1732788047982,0.01530343,94986.0,94985.0,0.007]
[1732788048485,0.001,94986.0,94985.0,0.007]
[1732788048884,0.053615,94986.0,94985.0,0.007]
[1732788049087,0.21000822,94986.0,94985.0,0.007]
[1732788049286,0.053615,94986.0,94985.0,0.007]
[1732788050187,0.05262,94978.0,94969.0,0.3608]
[1732788050390,0.052627,94965.0,94959.0,0.2516991]
[1732788050581,0.052625,94969.0,94958.0,0.3608]
[1732788050782,0.052625,94969.0,94968.0,0.052625]
[1732788051284,0.052626,94967.0,94958.0,0.3608]
[1732788051688,0.052626,94967.0,94965.0,0.05274394]
[1732788052080,0.51719322,94972.0,94965.0,0.00011694]
[1732788052401,0.052625,94970.0,94969.0,0.052624]
[1732788053188,0.052625,94970.0,94969.0,0.056624]
[1732788053381,0.052625,94970.0,94969.0,0.004]
[1732788053581,0.21790148,94970.0,94969.0,0.004]
[1732788053780,0.06150826,94970.0,94969.0,0.004]
[1732788054291,0.052625,94969.0,94968.0,0.052625]
[1732788054488,0.06150826,94969.0,94968.0,0.052625]
[1732788056080,0.053625,94969.0,94968.0,0.052625]
[1732788056284,0.06251562,94969.0,94968.0,0.052625]
[1732788056483,0.00989062,94969.0,94968.0,0.052625]
[1732788060299,0.06251562,94969.0,94968.0,0.052625]
[1732788060596,0.07678906,94969.0,94968.0,0.052625]
[1732788060995,0.02416406,94969.0,94968.0,0.24164225]
[1732788061192,0.02416406,94969.0,94968.0,0.052625]
[1732788061698,0.00989062,94969.0,94968.0,0.052625]
[1732788063086,0.02422314,94969.0,94968.0,0.052625]
[1732788063394,0.02422314,94969.0,94968.0,0.055625]
[1732788063799,0.02422314,94969.0,94968.0,0.052625]
[1732788063999,0.02422314,94969.0,94968.0,0.054625]
[1732788064198,0.02322314,94969.0,94968.0,0.054625]
[1732788064397,0.00889062,94969.0,94968.0,0.054625]
[1732788064598,0.02322314,94969.0,94968.0,0.054625]
[1732788064900,0.00889062,94969.0,94968.0,0.054625]
[1732788065091,0.02322314,94969.0,94968.0,0.054625]
[1732788065294,0.00889062,94969.0,94968.0,0.054625]
[1732788065491,0.02322314,94969.0,94968.0,0.054625]
[1732788065896,0.00889062,94969.0,94968.0,0.054625]
[1732788066198,0.02322314,94969.0,94968.0,0.053625]
[1732788066399,0.00889062,94969.0,94968.0,0.053625]
[1732788066599,0.02322314,94969.0,94968.0,0.053625]
[1732788066800,0.02322314,94969.0,94968.0,0.054625]
[1732788067099,0.00889062,94969.0,94968.0,0.054625]
[1732788067314,0.02322314,94969.0,94968.0,0.054625]
[1732788067616,0.00889062,94969.0,94968.0,0.054625]
[1732788067812,0.02322314,94969.0,94968.0,0.370505]
[1732788068110,0.12527085,94994.0,94969.0,0.31588]
[1732788068319,0.12527085,94999.0,94995.0,0.05261]
[1732788068609,0.16052924,95009.0,94995.0,0.05261]
[1732788068610,0.12527085,95007.0,95002.0,0.052606]
[1732788068912,0.13946747,95009.0,95002.0,0.052606]
[1732788069216,0.13946747,95009.0,95002.0,0.38371711]
[1732788069413,0.13946747,95009.0,95008.0,0.413403]
[1732788069802,0.15396505,95009.0,95008.0,0.413403]
[1732788070519,0.052605,95006.0,95002.0,0.00407552]
[1732788070708,0.15396505,95009.0,95002.0,0.00407552]
[1732788070709,0.07709758,95008.0,95002.0,7.552e-05]
[1732788070912,0.01449758,95007.0,95005.0,0.052604]
[1732788071102,0.01449758,95007.0,95005.0,0.413404]
[1732788071410,0.13946747,95009.0,95007.0,0.052604]
[1732788071611,0.13946747,95009.0,95008.0,0.004]
[1732788071810,0.14046747,95009.0,95008.0,0.004]
[1732788072003,0.01645695,95009.0,95008.0,0.004]
[1732788072706,0.01645695,95009.0,95007.0,0.052604]
[1732788072915,0.01545695,95008.0,95007.0,0.052604]
[1732788073212,0.0155118,95015.0,95011.0,0.052601]
[1732788073404,0.01551181,95014.0,95008.0,0.003]
[1732788073603,1.78165524,95017.0,95008.0,0.003]
[1732788073604,0.052602,95011.0,95008.0,0.003]
[1732788073807,1.78109523,95017.0,95008.0,0.003]
[1732788073808,0.06811381,95010.0,95008.0,0.005]
[1732788074010,0.01551181,95009.0,95008.0,0.005]
[1732788074814,0.052602,95010.0,95008.0,0.005]
[1732788075021,0.01571918,95009.0,95008.0,0.005]
[1732788075413,0.01571918,95009.0,95007.0,0.002]
[1732788075629,0.01571918,95008.0,95007.0,0.002]
[1732788075826,0.052605,95005.0,95002.0,0.14235552]
[1732788076025,0.01571918,95004.0,95002.0,0.14235552]
[1732788076225,0.01571918,95003.0,95002.0,0.14235552]
[1732788077025,0.01571918,95003.0,95002.0,7.552e-05]
[1732788077320,0.01571918,95003.0,95002.0,0.14235552]
[1732788077527,0.01571918,95003.0,95002.0,7.552e-05]
[1732788077835,0.12828497,95003.0,95002.0,7.552e-05]
[1732788078125,0.01571918,95003.0,95002.0,7.552e-05]
[1732788078326,0.01570487,95003.0,95002.0,7.552e-05]
[1732788078926,0.01670487,95003.0,95002.0,7.552e-05]
[1732788080031,0.02558489,95003.0,95002.0,7.552e-05]
[1732788080831,0.052605,95004.0,95002.0,7.552e-05]
[1732788081123,0.001,95003.0,95002.0,7.552e-05]
[1732788081530,0.02667561,95003.0,95002.0,7.552e-05]
[1732788081722,0.02867561,95003.0,95002.0,7.552e-05]
[1732788082133,0.02667561,95003.0,95002.0,7.552e-05]
[1732788082429,0.01780038,95003.0,95002.0,0.05268152]
[1732788082622,0.01780038,95003.0,95002.0,0.36848152]
[1732788082820,1.76481,95017.0,95003.0,0.052606]
[1732788083017,1.76481,95017.0,95016.0,0.413399]
[1732788083220,1.76481,95017.0,95016.0,0.555639]
[1732788083424,1.76481,95017.0,95016.0,0.871359]
[1732788083635,1.05878997,95017.0,95016.0,1.532159]
[1732788083819,0.86278871,95017.0,95016.0,1.532159]
[1732788084024,0.80715571,95017.0,95016.0,1.532159]
[1732788084224,0.75322571,95017.0,95016.0,1.532159]
[1732788085035,0.75322571,95017.0,95016.0,1.78301996]
[1732788085334,0.75322571,95017.0,95016.0,1.534159]
[1732788085634,0.76298756,95017.0,95016.0,1.534159]
[1732788085827,0.76298756,95017.0,95016.0,1.532159]
[1732788086029,0.76398756,95017.0,95016.0,1.538159]
[1732788086226,0.76398756,95017.0,95016.0,1.539159]
[1732788086531,0.33045481,95017.0,95016.0,1.539159]
[1732788086827,0.02319781,95017.0,95016.0,1.64540387]
[1732788087031,8.1e-07,95017.0,95016.0,1.64440387]
[1732788087227,8.1e-07,95017.0,95016.0,1.64640387]
[1732788087425,8.1e-07,95017.0,95016.0,1.65171064]
[1732788087634,7.425e-05,95036.0,95035.0,0.052588]
[1732788087824,2.5e-07,95036.0,95035.0,1.358588]
[1732788088118,2.5e-07,95036.0,95035.0,1.974268]
[1732788088318,2.5e-07,95036.0,95035.0,2.07949183]
[1732788088932,2.5e-07,95036.0,95035.0,2.08733183]
[1732788089433,2.5e-07,95036.0,95035.0,1.534028]
[1732788089620,2.5e-07,95036.0,95035.0,1.367428]
[1732788089824,0.00906664,95036.0,95035.0,1.367428]
[1732788090029,2.5e-07,95036.0,95035.0,1.219348]
[1732788090220,2.5e-07,95036.0,95035.0,1.367428]
[1732788090531,0.00906664,95036.0,95035.0,1.535028]
[1732788090725,0.00906664,95036.0,95035.0,1.683108]
[1732788090927,0.00906664,95036.0,95035.0,1.367428]
[1732788091827,0.00906664,95036.0,95035.0,1.219348]
[1732788092132,0.04046664,95036.0,95035.0,1.367388]
[1732788092836,0.03140025,95036.0,95035.0,1.367388]
[1732788093232,0.03140025,95036.0,95035.0,1.683068]
[1732788093529,2.5e-07,95036.0,95035.0,1.835028]
[1732788093730,2.5e-07,95036.0,95035.0,1.983068]
[1732788094339,0.0312,95063.0,95062.0,0.052573]
[1732788094633,0.0312,95063.0,95062.0,0.561413]
[1732788094634,0.06271566,95063.0,95062.0,0.561413]
[1732788094838,0.04853987,95063.0,95062.0,0.561413]
[1732788095230,0.04853987,95063.0,95062.0,0.413373]
[1732788095438,0.04853987,95063.0,95062.0,0.56152602]
[1732788095938,0.04853987,95063.0,95062.0,0.56252602]
[1732788095939,0.05753987,95063.0,95062.0,0.56252602]
[1732788096639,0.06153987,95063.0,95062.0,0.56252602]
[1732788097026,0.03033987,95063.0,95062.0,0.56252602]
[1732788100832,0.03033987,95063.0,95062.0,0.56248602]
[1732788101644,0.02185987,95063.0,95062.0,0.87808602]
[1732788102031,0.013,95063.0,95062.0,0.87808602]
[1732788103038,0.009,95063.0,95062.0,0.87808602]
[1732788103238,0.01,95063.0,95062.0,0.41448602]
[1732788103448,0.01248,95063.0,95056.0,0.3608]
[1732788103938,0.01248,95063.0,95057.0,0.148]
[1732788103939,0.052573,95062.0,95057.0,0.148]
[1732788104339,0.01248,95063.0,95056.0,0.3108]
[1732788104535,0.01248,95063.0,95060.0,0.052574]
[1732788104940,0.01248,95063.0,95061.0,0.200574]
[1732788105449,0.01248,95063.0,95050.0,0.12748067]
[1732788105450,0.3608,95062.0,95023.0,0.02094]
[1732788105642,0.3608,95043.0,95025.0,0.3608]
[1732788105835,0.3608,95043.0,95039.0,0.052586]
[1732788106233,0.3608,95043.0,95040.0,0.052585]
[1732788106536,0.3608,95043.0,95041.0,8.372e-05]
[1732788107941,0.413384,95043.0,95041.0,8.372e-05]
[1732788108735,0.12748067,95036.0,95029.0,0.15444]
[1732788108939,0.052592,95027.0,95026.0,0.052592]
[1732788109145,0.3608,95032.0,95023.0,0.17538]
[1732788109146,0.052591,95030.0,95028.0,0.052592]
[1732788109539,0.3608,95032.0,95031.0,0.05259]
[1732788109739,0.3608,95032.0,95023.0,0.17538]
[1732788109740,0.052585,95041.0,95029.0,0.00012467]
[1732788109944,0.052586,95039.0,95037.0,0.052586]
[1732788110440,0.0323,95042.0,95031.0,0.05259]
[1732788110636,0.3608,95032.0,95031.0,0.05259]
[1732788110839,0.36960646,95032.0,95031.0,0.05259]
[1732788111035,0.36960648,95032.0,95031.0,0.05259]
[1732788111753,0.05259,95031.0,95029.0,0.00412467]
[1732788111939,0.00880648,95030.0,95029.0,0.00412467]
[1732788112346,0.00880648,95030.0,95029.0,0.00039574]
[1732788113142,0.00880648,95030.0,95028.0,0.061872]
[1732788113352,0.00880648,95029.0,95028.0,0.216352]
[1732788113949,0.00880648,95029.0,95028.0,0.222312]
[1732788115039,0.00880648,95029.0,95028.0,0.19863361]
[1732788115040,0.02323944,95029.0,95028.0,0.19863361]
[1732788115243,0.00157862,95049.0,95028.0,0.35387361]
[1732788115455,0.01443365,95048.0,95044.0,0.052583]
[1732788115644,0.00157862,95049.0,95045.0,0.16044]
[1732788115843,0.00157862,95049.0,95046.0,0.052582]
[1732788116738,0.00157862,95049.0,95047.0,0.052581]
[1732788116948,0.36140001,95052.0,95051.0,0.052579]
[1732788116949,0.3608,95052.0,95051.0,0.052579]
[1732788117342,0.3608,95062.0,95060.0,0.052574]
[1732788118557,0.3608,95062.0,95061.0,0.0324]
[1732788119059,0.3608,95062.0,95061.0,0.19284]
[1732788119249,0.413373,95062.0,95061.0,0.19284]
[1732788120153,0.413373,95062.0,95061.0,0.16144]
[1732788120557,0.420373,95062.0,95061.0,0.16144]
[1732788121245,0.413373,95062.0,95061.0,0.16144]
[1732788121558,0.420373,95062.0,95061.0,0.16144]
[1732788124766,0.3156,95061.0,95041.0,0.15138502]
[1732788124951,0.3156,95061.0,95036.0,0.00064]
[1732788124952,0.7216,95042.0,95036.0,0.00064]
[1732788125152,0.052601,95015.0,95011.0,0.0333]
[1732788125348,0.052601,95015.0,95013.0,0.0526]
[1732788125349,0.3608,95015.0,95013.0,0.0526]
[1732788125565,0.052601,95013.0,95011.0,0.095181]
[1732788125761,0.052601,95013.0,95012.0,5.544e-05]
[1732788127462,0.06106182,95013.0,95012.0,5.544e-05]
[1732788127661,0.06206182,95013.0,95012.0,5.544e-05]
[1732788128855,0.37782182,95013.0,95011.0,0.009]
[1732788129069,0.69933719,95012.0,95011.0,0.009]
[1732788129559,0.69933719,95012.0,95007.0,0.02344]
[1732788129560,0.052603,95008.0,95007.0,0.02344]
[1732788129865,0.07538019,95008.0,95007.0,0.02344]
[1732788130655,0.07538019,95008.0,94991.0,0.052612]
[1732788130656,0.05261,94996.0,94991.0,0.052612]
[1732788130851,0.43618719,94996.0,94991.0,0.00928]
[1732788131261,0.052612,94992.0,94991.0,0.00928]
[1732788131461,0.052615,94986.0,94985.0,0.44256]
[1732788131665,0.06721175,94986.0,94985.0,0.45128]
[1732788131858,0.07633471,94986.0,94985.0,0.45128]
[1732788132463,0.07633471,94986.0,94985.0,0.00928]
[1732788133162,0.12748067,94995.0,94985.0,0.00928]
[1732788133163,0.48828067,94995.0,94985.0,0.01628]
[1732788133359,0.48828067,94995.0,94989.0,0.052613]
[1732788134457,0.052612,94993.0,94989.0,0.052613]
[1732788135270,0.052612,94993.0,94989.0,0.056613]
[1732788135769,0.052612,94993.0,94989.0,0.052613]
[1732788135962,0.052612,94993.0,94989.0,0.056613]
[1732788136159,0.052612,94993.0,94989.0,0.004]
[1732788136369,0.052612,94992.0,94989.0,0.004]
[1732788136667,0.052613,94991.0,94989.0,0.004]
[1732788137171,0.3608,94990.0,94989.0,0.004]
[1732788138367,0.3608,94990.0,94978.0,0.219819]
[1732788138368,0.052617,94982.0,94945.0,0.25074785]
[1732788138554,0.052617,94982.0,94951.0,0.0333]
[1732788138555,0.3608,94967.0,94951.0,0.0333]
[1732788138758,0.052629,94962.0,94952.0,0.00928]
[1732788139854,0.052629,94962.0,94953.0,0.052633]
[1732788140060,0.052629,94962.0,94954.0,0.16724]
[1732788140256,0.3608,94959.0,94952.0,0.17652]
[1732788140558,0.3608,94959.0,94952.0,0.16724]
[1732788140559,0.052633,94954.0,94952.0,0.16724]
[1732788140759,0.052633,94954.0,94953.0,0.00928]
[1732788142563,0.001,94954.0,94953.0,0.067913]
[1732788142871,0.052646,94931.0,94923.0,0.3608]
[1732788143073,0.3608,94930.0,94921.0,0.031]
[1732788143366,0.052644,94934.0,94922.0,0.05265]
[1732788143563,0.052646,94931.0,94927.0,0.00928]
[1732788143764,0.052646,94931.0,94923.0,0.16724]
[1732788143964,0.052646,94931.0,94926.0,0.00928]
[1732788144369,0.05265,94923.0,94921.0,0.031]
[1732788144757,0.052648,94928.0,94922.0,0.00928]
[1732788145061,0.37531455,94927.0,94921.0,0.031]
[1732788145363,0.03275927,94926.0,94921.0,0.031]
[1732788145563,0.02369526,94925.0,94922.0,0.00928]
[1732788145772,0.02369526,94924.0,94922.0,0.00928]
[1732788146064,0.02469526,94923.0,94922.0,0.00928]
[1732788146264,0.00911356,94923.0,94922.0,0.00928]
[1732788146964,0.002,94927.0,94920.0,0.030131]
[1732788147168,0.052641,94940.0,94922.0,0.05265]
[1732788147367,0.3608,94946.0,94931.0,0.052645]
[1732788147368,0.052638,94945.0,94931.0,0.052645]
[1732788147556,0.052638,94945.0,94935.0,0.052643]
[1732788147760,0.3608,94946.0,94929.0,0.16728]
[1732788147961,0.05264,94941.0,94931.0,0.052645]
[1732788148161,0.05264,94941.0,94932.0,0.052645]
[1732788148466,0.02106532,94942.0,94936.0,0.052643]
[1732788149569,0.001,94945.0,94935.0,0.16932]
[1732788149768,0.001,94945.0,94935.0,0.002]
[1732788149968,0.033,94981.0,94940.0,0.3608]
[1732788149969,0.052628,94963.0,94940.0,0.3608]
[1732788150159,0.052628,94963.0,94954.0,0.052632]
[1732788150366,0.052624,94970.0,94966.0,0.052626]
[1732788150661,0.3608,94973.0,94956.0,0.3608]
[1732788151066,0.052623,94972.0,94957.0,9.431e-05]
[1732788151458,0.0146539,94971.0,94957.0,9.431e-05]
[1732788151669,0.0176539,94970.0,94957.0,9.431e-05]
[1732788151871,0.0146539,94969.0,94964.0,0.052627]
[1732788152166,0.003,94970.0,94964.0,0.052627]
[1732788152167,0.0146539,94968.0,94964.0,0.052627]
[1732788152470,0.0146539,94967.0,94966.0,0.052626]
[1732788152865,0.0146539,94967.0,94957.0,9.431e-05]
[1732788152866,0.0146539,94969.0,94957.0,9.431e-05]
[1732788153072,0.0146539,94968.0,94957.0,9.431e-05]
[1732788153262,0.0146539,94967.0,94957.0,0.03249431]
[1732788153463,0.0146539,94967.0,94964.0,0.052627]
[1732788153674,0.003,94972.0,94958.0,0.16732]
[1732788153679,0.0146539,94970.0,94958.0,0.16732]
[1732788153869,0.003,94972.0,94958.0,0.16732]
[1732788153870,0.052629,94961.0,94958.0,0.16732]
[1732788154065,0.0672839,94960.0,94958.0,0.16732]
[1732788154372,0.052631,94958.0,94957.0,9.431e-05]
[1732788154575,0.0672849,94958.0,94957.0,9.431e-05]
[1732788154759,0.3832049,94958.0,94957.0,9.431e-05]
[1732788155071,0.3832049,94958.0,94946.0,0.219957]
[1732788155072,0.052643,94936.0,94919.0,0.3608]
[1732788155273,0.052643,94936.0,94928.0,0.052647]
[1732788155274,0.42762413,94936.0,94928.0,0.052647]
[1732788155467,0.413443,94936.0,94917.0,0.0617]
[1732788155660,0.413443,94936.0,94921.0,0.052651]
[1732788155862,0.052648,94927.0,94924.0,0.052649]
[1732788156074,0.3608,94936.0,94900.0,0.4608]
[1732788156075,0.3608,94928.0,94900.0,0.1]
[1732788156370,0.3608,94912.0,94900.0,0.4608]
[1732788156570,0.3608,94912.0,94905.0,0.05266]
[1732788156770,0.3608,94912.0,94900.0,0.06848917]
[1732788156972,0.3608,94901.0,94860.0,0.61154785]
[1732788157174,0.3608,94890.0,94876.0,0.3608]
[1732788157378,0.3608,94901.0,94876.0,0.3608]
[1732788157379,0.3608,94901.0,94886.0,0.3608]
[1732788157971,0.3608,94901.0,94893.0,0.00124178]
[1732788158963,0.00861609,94900.0,94893.0,0.00124178]
[1732788159267,0.052664,94897.0,94896.0,0.00124178]
[1732788159463,0.052664,94897.0,94896.0,0.00144383]
[1732788159464,0.06128009,94897.0,94896.0,0.00144383]
[1732788159669,0.00861609,94897.0,94896.0,0.00144383]
[1732788162572,0.02295113,94897.0,94896.0,0.00144383]
[1732788162879,0.02295113,94897.0,94896.0,0.00244383]
[1732788163784,0.02306432,94897.0,94896.0,0.00244383]
[1732788164480,0.00887089,94897.0,94896.0,0.00244383]
[1732788164877,0.052664,94898.0,94896.0,0.00244383]
[1732788165077,0.00879272,94897.0,94896.0,0.00244383]
[1732788165475,0.0229696,94897.0,94896.0,0.00244383]
[1732788167480,0.00879272,94897.0,94896.0,0.00244383]
[1732788167881,0.06145672,94897.0,94896.0,0.00244383]
[1732788168782,0.07612813,94897.0,94896.0,0.00244383]
[1732788174583,0.06145672,94897.0,94896.0,0.00244383]
[1732788174779,0.0614805,94897.0,94896.0,0.00244383]
[1732788178381,0.07013728,94897.0,94896.0,0.00244383]
[1732788178690,0.06132078,94897.0,94896.0,0.00244383]
[1732788180583,0.06132078,94897.0,94896.0,0.05510883]
[1732788180973,0.06132078,94897.0,94896.0,0.00244383]
[1732788182587,0.07641436,94897.0,94896.0,7.399e-05]
[1732788183289,0.07641436,94897.0,94896.0,2.25e-06]
[1732788183497,0.07722855,94897.0,94896.0,2.25e-06]
[1732788184986,0.39334855,94897.0,94896.0,2.25e-06]
[1732788185884,0.052669,94889.0,94888.0,0.25074785]
[1732788186086,0.07723355,94889.0,94888.0,0.25074785]
[1732788186386,0.07723355,94889.0,94887.0,0.004]
[1732788186585,0.02456455,94888.0,94887.0,0.004]
[1732788186791,0.02560987,94888.0,94887.0,0.004]
[1732788187288,0.02560741,94888.0,94887.0,0.004]
[1732788188593,0.03219561,94888.0,94887.0,0.004]
[1732788188784,0.03219561,94888.0,94887.0,0.005]
[1732788189592,0.51160784,94888.0,94887.0,0.005]
[1732788189793,0.38640741,94888.0,94887.0,0.25770482]
[1732788190086,0.38603433,94888.0,94887.0,0.25770482]
[1732788190893,0.38603433,94888.0,94887.0,0.005]
[1732788193284,0.38541033,94888.0,94887.0,0.005]
[1732788193791,0.38541033,94888.0,94887.0,0.00013938]
[1732788196199,0.54180355,94888.0,94887.0,0.00013938]
[1732788196396,0.54238395,94888.0,94887.0,0.00013938]
[1732788196690,0.38599073,94888.0,94887.0,0.00013938]
[1732788196899,0.39786139,94888.0,94887.0,0.00013938]
[1732788197192,0.55425461,94888.0,94887.0,0.00013938]
[1732788197594,0.052673,94882.0,94881.0,0.14254211]
[1732788197893,0.07786373,94882.0,94881.0,0.14254211]
[1732788198093,0.07786373,94882.0,94881.0,0.16612]
[1732788198688,0.052675,94879.0,94877.0,0.16612]
[1732788199004,0.052676,94877.0,94876.0,0.01185246]
[1732788199186,0.17175564,94877.0,94875.0,0.0316]
[1732788199383,0.02519073,94876.0,94875.0,0.0316]
[1732788200191,0.02519073,94876.0,94875.0,0.19772]
[1732788200589,0.02519073,94876.0,94875.0,0.20996192]
[1732788201392,0.02519073,94876.0,94875.0,0.19772]
[1732788201901,0.02719073,94876.0,94875.0,0.19972]
[1732788202913,0.00930916,94876.0,94875.0,0.568597]
[1732788203099,0.12519806,94888.0,94875.0,0.568597]
[1732788203100,0.09388891,94888.0,94883.0,0.052672]
[1732788203399,0.052667,94892.0,94886.0,0.3608]
[1732788203595,0.052667,94892.0,94884.0,0.33312008]
[1732788203596,0.09388891,94890.0,94884.0,0.31582938]
[1732788204090,0.14655691,94890.0,94883.0,0.31582938]
[1732788204297,0.09388891,94890.0,94884.0,0.31582938]
[1732788204600,0.01195287,94903.0,94888.0,0.3608]
[1732788204601,0.09388891,94892.0,94888.0,0.3608]
[1732788204791,0.48599806,94900.0,94889.0,0.16612]
[1732788205100,0.3608,94900.0,94898.0,0.25262461]
[1732788205303,0.12519806,94904.0,94899.0,0.16012]
[1732788205507,0.48599806,94905.0,94899.0,0.41274461]
[1732788205802,0.48599806,94905.0,94901.0,0.25262461]
[1732788205803,0.3608,94905.0,94901.0,0.25262461]
[1732788205993,0.3608,94905.0,94902.0,0.25262461]
[1732788206198,0.3608,94905.0,94899.0,0.16012]
[1732788206494,0.005,94900.0,94899.0,0.16012]
[1732788207300,0.052663,94901.0,94899.0,0.16012]
[1732788208692,0.005,94900.0,94899.0,0.16012]
[1732788209197,0.052663,94901.0,94899.0,0.16012]
[1732788209508,0.057663,94901.0,94899.0,0.16012]
[1732788209894,0.052663,94901.0,94899.0,0.16012]
[1732788210195,0.005,94900.0,94886.0,0.3608]
[1732788210400,0.005,94900.0,94870.0,0.12796837]
[1732788210401,0.052674,94881.0,94877.0,0.3608]
[1732788211502,0.20906722,94881.0,94877.0,0.16008]
[1732788211708,0.05123773,94880.0,94877.0,0.16008]
[1732788212098,0.15628257,94879.0,94877.0,0.16008]